[Event "Fall IM-E Norm Invitational 2022"]
[Site "Charlotte"]
[Date "2022.11.18"]
[Round "2"]
[White "Krishnakumar, Sriram"]
[Black "Kanli, Alperen"]
[Result "1-0"]
[ECO "B12"]
[WhiteElo "2248"]
[BlackElo "2171"]
[Annotator "TA"]
[PlyCount "77"]
[EventDate "2022.11.18"]
[EventType "tourn"]
[EventCountry "USA"]
[SourceTitle "playchess.com"]
[Source "ChessBase"]
[SourceQuality "1"]
[TimeControl "5400+30"]

{[%evp 9,77,25,45,42,44,42,40,47,133,122,136,147,137,84,93,76,83,94,73,70,157,163,163,155,145,135,174,124,165,185,286,270,268,261,243,250,228,234,294,253,269,268,372,276,278,253,266,275,496,480,633,356,856,844,814,658,725,656,910,568,543,417,399,392,29986,29987,29987,29988,29985,29969]} 1. e4 {[%emt 0:00:05]} c6 {[%emt 0:00:13]} 2. d4 {[%emt 0:00:07]} d5 {[%emt 0:00:05]} 3. e5 {[%emt 0:00:06]} c5 {[%emt 0:00:08]} 4. Nf3 {[%emt 0:00:07]} Nc6 {[%emt 0:07:38]} 5. dxc5 {[%emt 0:00:18]} e6 {[%emt 0:00:48]} 6. Be3 {[%emt 0:01:28] B12: Caro-Kann: Advance Variation.} Nh6 {[%emt 0:04:33] is recently more successful than 6...Nge7.} 7. Bxh6 {[%emt 0:03:00]} gxh6 {[%emt 0:00:14]} 8. Bb5 {[%emt 0:00:39] White is slightly better.} Bg7 {[%emt 0:07:39]} (8... Bxc5 $14 9. c4 O-O) 9. O-O {[%emt 0:07:50] [#] White is more active.} O-O $146 {[%emt 0:00:41]} ({Predecessor:} 9... Bd7 10. Bxc6 Bxc6 11. Nbd2 Rg8 12. Qe2 Bh8 13. Nd4 Rc8 14. f4 Qa5 15. N2b3 Qc7 {1-0 (27) Pott,B (1623)-Boi,P (1714) LSS email 2011}) 10. Bxc6 {[%emt 0:04:17]} bxc6 {[%emt 0:00:11]} 11. c3 {[%emt 0:02:02]} (11. Qd4 $142) 11... f6 $16 {[%emt 0:02:51]} 12. Qd4 {[%emt 0:21:37]} fxe5 {[%emt 0:13:15]} 13. Nxe5 {[%emt 0:00:24]} Rf5 {[%emt 0:20:13]} 14. f4 {[%emt 0:02:51] aiming for Nd2.} Qh4 {[%emt 0:17:35] [#]} (14... Ba6 $14 15. Re1 Qf8) 15. Nd2 $1 {[%emt 0:09:06] Pair of Knights!} Ba6 {[%emt 0:00:33]} 16. Rf2 {[%emt 0:09:50]} Raf8 {[%emt 0:03:16]} 17. Ndf3 {[%emt 0:02:15]} Bxe5 {[%emt 0:07:36]} 18. fxe5 {[%emt 0:04:22]} (18. Nxe5 $18 Rxf4 19. Rxf4 Rxf4 20. g3 Rxd4 21. gxh4) 18... Qe4 {[%emt 0:00:09]} 19. Re1 {[%emt 0:08:54]} Qd3 {[%emt 0:00:10]} (19... Qxd4 $142 20. cxd4 Bb5) 20. Rd2 {[%emt 0:02:13]} Qb5 {[%emt 0:00:35]} 21. h3 {[%emt 0:03:01]} Rf4 {[%emt 0:01:58]} 22. Qf2 {[%emt 0:00:09]} Kh8 {[%emt 0:01:27]} 23. b4 {[%emt 0:05:34]} Qc4 {[%emt 0:01:50]} 24. Rc1 {[%emt 0:02:57]} Qe4 {[%emt 0:02:53] [#]} 25. Rd4 $1 {[%emt 0:03:46] Hoping for Qd2.} Qxe5 {[%emt 0:00:32][%cal Of4f3]} 26. Rxf4 {[%emt 0:00:10]} ({Not} 26. Nxe5 Rxf2 27. Nxc6 Rxa2 $16) 26... Qxf4 {[%emt 0:00:13]} 27. Qd4+ {[%emt 0:00:03]} Qxd4+ {[%emt 0:04:31]} 28. Nxd4 $18 {[%emt 0:00:05][%mdl 4096] Endgame KRB-KRN} e5 $2 {[%emt 0:00:28]} (28... Bb5 29. Nxe6 Rf6) 29. Nxc6 {[%emt 0:01:29]} e4 {[%emt 0:00:15]} 30. Nxa7 {[%emt 0:03:43]} Bc4 $2 {[%emt 0:01:33]} (30... e3 31. b5 Rf7) 31. Re1 {[%emt 0:01:24]} Ra8 {[%emt 0:00:26]} 32. Nc6 {[%emt 0:00:04]} Rxa2 {[%emt 0:00:13]} 33. Nd4 {[%emt 0:00:38] Inhibits Rc2. Strongly threatening c6.} Ra3 {[%emt 0:00:25]} 34. Re3 {[%emt 0:00:34] Threatens to win with c6.} Bd3 {[%emt 0:00:03]} 35. c6 {[%emt 0:00:59][%cal Bc5c6,Bc6c7][%mdl 32]} Rxc3 {[%emt 0:00:15]} 36. b5 {[%emt 0:00:06][%cal Bb4b5,Bb5b6,Bb6b7][%mdl 32] White threatens b6 and mate.} Rc4 $2 {[%emt 0:02:03] [#]} (36... Rc1+ $18 37. Kf2 Bxb5 38. Nxb5 Rxc6) 37. b6 $1 {[%emt 0:00:29] White mates.} Rxd4 {[%emt 0:00:04]} (37... Rc1+ 38. Kh2) 38. b7 {[%emt 0:00:12]} Rb4 {[%emt 0:00:07]} 39. c7 {[%emt 0:00:04] Weighted Error Value: White=0.31/Black=0.56} 1-0

[Event "Fall IM-E Norm Invitational 2022"]
[Site "Charlotte"]
[Date "2022.11.18"]
[Round "2"]
[White "Rorrer, Grayson"]
[Black "Csonka, Attila Istvan"]
[Result "1-0"]
[ECO "B48"]
[WhiteElo "2230"]
[BlackElo "2321"]
[Annotator "TA"]
[PlyCount "67"]
[EventDate "2022.11.18"]
[EventType "tourn"]
[EventCountry "USA"]
[SourceTitle "playchess.com"]
[Source "ChessBase"]
[SourceQuality "1"]
[TimeControl "5400+30"]

{[%evp 11,67,39,39,22,19,19,29,22,23,26,13,20,63,72,78,81,85,86,83,89,88,66,65,58,62,60,55,52,87,81,137,129,238,226,234,218,230,218,218,198,144,139,120,126,123,62,207,167,194,136,241,235,226,249,235,224,659,22]} 1. e4 {[%emt 0:00:02]} c5 {[%emt 0:00:06]} 2. Nf3 {[%emt 0:00:12]} e6 {[%emt 0:00:07]} 3. d4 {[%emt 0:00:10]} cxd4 {[%emt 0:00:06]} 4. Nxd4 {[%emt 0:00:11]} Nc6 {[%emt 0:00:06]} 5. Nc3 {[%emt 0:00:18]} Qc7 6. Be3 {[%emt 0:00:09]} a6 {[%emt 0:00:19]} 7. Qf3 {[%emt 0:00:09] B48: Sicilian: Taimanov: 5 Nc3 Qc7 6 Be3 a6 without Be2.} Nf6 {[%emt 0:00:36][%cal Of8a3]} 8. O-O-O {[%emt 0:00:15]} Nxd4 {[%emt 0:01:50]} 9. Bxd4 {[%emt 0:00:24] Threatens to win with e5. White has an edge.} e5 {[%emt 0:00:22]} 10. Be3 {[%emt 0:09:26] aiming for g4. 10.Qg3 is more fashionable.} d6 {[%emt 0:00:55]} 11. h3 {[%emt 0:10:51] Prevents Bg4.} Be6 {[%emt 0:00:39]} 12. g4 {[%emt 0:23:13]} Rc8 {[%emt 0:04:43][%cal Oe6a2]} 13. g5 {[%emt 0:00:21]} Nd7 {[%emt 0:00:10][%cal Oe6a2]} 14. Kb1 {[%emt 0:00:20] [#]} b5 $146 {[%emt 0:00:49]} ({Predecessor:} 14... Be7 15. h4 O-O 16. Bh3 Qc4 17. Rd2 Bxh3 18. Qxh3 Qe6 19. Nd5 Bd8 20. Qg2 f5 {1-0 (51) Cornette,D (2470)-Zawadzka,J (2439) Rio Achaea 2018}) 15. Bd3 {[%emt 0:01:14]} Nc5 {[%emt 0:01:46]} 16. Bxc5 {[%emt 0:08:23]} Qxc5 {[%emt 0:01:56]} 17. Nd5 {[%emt 0:01:18]} Be7 {[%emt 0:04:19]} 18. Qg3 {[%emt 0:04:54]} (18. h4 {is more complex.} h6 19. Qg2 hxg5 20. hxg5 Kd7 21. g6) 18... Bxd5 {[%emt 0:03:29]} 19. exd5 {[%emt 0:00:15]} a5 {[%emt 0:06:19]} 20. Qg4 {[%emt 0:02:02][%cal Od3b5]} Rb8 {[%emt 0:03:35]} (20... Rc7 $142) 21. f4 $1 $16 {[%emt 0:05:39]} a4 {[%emt 0:02:35]} (21... exf4 $16 22. Qxf4 Qb4) 22. fxe5 $18 {[%emt 0:00:28]} dxe5 {[%emt 0:00:26]} 23. d6 $1 {[%emt 0:08:17]} Bxd6 {[%emt 0:01:35]} 24. g6 $1 {[%emt 0:00:22]} Qb4 {[%emt 0:02:15]} (24... hxg6 25. Bxg6 $1 Rb6 26. Qe6+ Kd8 27. Qxf7 $18 (27. Bxf7 Kc7 $16)) 25. gxf7+ {[%emt 0:01:14]} ({Weaker is} 25. gxh7 a3 26. Qxb4 Bxb4 $14) 25... Kf8 {[%emt 0:00:07]} 26. Qxb4 {[%emt 0:04:25] Dancing on a razor blade. White has more active pieces. The black rooks are badly placed.} Bxb4 {[%emt 0:00:07] [#]} 27. Bxb5 $1 {[%emt 0:00:10][%mdl 512]} a3 {[%emt 0:01:37] [#]} 28. Bc4 {[%emt 0:00:43]} ({White should play} 28. Rhf1 $1 $16) 28... g6 {[%emt 0:02:13] A mistake that costs the game.} (28... Ke7 $1 $14) 29. Bb3 {[%emt 0:01:40]} axb2 {[%emt 0:01:53]} 30. Kxb2 {[%emt 0:00:13]} (30. Rd7 $18) 30... Kg7 {[%emt 0:00:08] [#]} (30... Ke7 $16) 31. c3 $1 {[%emt 0:01:07]} Be7 {[%emt 0:00:52]} 32. Rd7 {[%emt 0:00:07]} Bg5 {[%emt 0:00:15]} 33. Re1 {[%emt 0:00:34]} Bf4 $2 {[%emt 0:02:07]} (33... Kf6 34. a4 Ra8) 34. f8=Q+ {[%emt 0:00:20][%mdl 32768] Weighted Error Value: White=0.09 (flawless) /Black=0.38. Loss on time!?} 1-0

[Event "Fall IM-E Norm Invitational 2022"]
[Site "Charlotte"]
[Date "2022.11.18"]
[Round "2"]
[White "Putnam, Liam"]
[Black "Kunka, Harshid"]
[Result "1/2-1/2"]
[ECO "E06"]
[WhiteElo "2161"]
[BlackElo "2236"]
[Annotator "TA"]
[PlyCount "67"]
[EventDate "2022.11.18"]
[EventType "tourn"]
[EventCountry "USA"]
[SourceTitle "playchess.com"]
[Source "ChessBase"]
[SourceQuality "1"]
[TimeControl "5400+30"]

{[%evp 18,67,62,62,67,8,53,55,64,53,71,53,77,14,12,11,11,15,18,18,18,18,18,18,25,24,33,0,0,0,25,0,0,0,0,0,0,0,0,0,0,0,0,0,0,0,0,0,0,0,0,0]} 1. d4 {[%emt 0:04:39]} d5 {[%emt 0:00:22]} 2. c4 {[%emt 0:00:02]} e6 {[%emt 0:00:23]} 3. Nf3 {[%emt 0:00:10]} Nf6 {[%emt 0:00:24]} 4. g3 {[%emt 0:02:45]} Be7 {[%emt 0:00:34]} 5. Bg2 {[%emt 0:00:04]} O-O {[%emt 0:00:23]} 6. Nc3 {[%emt 0:01:36]} c6 {[%emt 0:01:56]} 7. O-O {[%emt 0:00:57]} b6 {[%emt 0:00:55]} 8. Ne5 {[%emt 0:05:20]} Bb7 {[%emt 0:03:53]} 9. e4 {[%emt 0:00:02]} dxc4 {[%emt 0:05:32]} 10. Nxc4 {[%emt 0:06:50]} b5 {[%emt 0:03:39] Recently 10...Nbd7 got a lot of attention. E06: Closed Catalan: Early deviations.} 11. Ne5 {[%emt 0:10:57] is the legacy move (11.Ne3).} (11. Ne3 $14) 11... Nbd7 {[%emt 0:06:02]} (11... c5 {is more complex.} 12. dxc5 b4 13. Qb3 Ba6) 12. Nxd7 {[%emt 0:01:09] [#]} Qxd7 $146 {[%emt 0:00:43] White is slightly better.} ({Predecessor:} 12... Nxd7 13. e5 Rb8 14. Qg4 Kh8 15. Rd1 c5 16. dxc5 Bxg2 17. Kxg2 Qc7 18. b4 Nxe5 {½-½ (57) Zimmerman,Y (2410)-Manik,M (2455) Presov 1997}) 13. Be3 {[%emt 0:00:15]} Rac8 {[%emt 0:02:41]} 14. Qe2 {[%emt 0:04:52]} b4 {[%emt 0:10:29]} 15. e5 {[%emt 0:20:44]} ({White should try} 15. Na4 $16) 15... Nd5 $11 {[%emt 0:02:59]} 16. Nxd5 {[%emt 0:08:33]} (16. Na4 {feels hotter.} c5 17. Nxc5 Bxc5 18. dxc5 Nxe3 19. Bxb7 Nxf1 20. Bxc8 Rxc8 21. Rd1) 16... cxd5 {[%emt 0:00:08]} 17. Rfc1 {[%emt 0:00:09]} Rxc1+ {[%emt 0:04:09]} 18. Rxc1 {[%emt 0:00:02]} Rc8 {[%emt 0:00:12]} 19. Rxc8+ {[%emt 0:00:53]} Qxc8 {[%emt 0:00:18]} 20. Bf1 {[%emt 0:00:13]} Qc6 {[%emt 0:07:51]} 21. h4 {[%emt 0:01:00]} a5 {[%emt 0:04:47]} 22. Bg5 {[%emt 0:04:22]} Bxg5 {[%emt 0:05:11]} 23. hxg5 {[%emt 0:00:02][%mdl 4096] Endgame KQB-KQB} Qb6 {[%emt 0:02:24]} 24. Qd3 {[%emt 0:08:42]} (24. Qb5 $5 Qxb5 25. Bxb5 $11) 24... g6 {[%emt 0:01:09] The position is equal.} 25. Be2 {[%emt 0:01:47]} Qc6 {[%emt 0:01:33]} 26. Qb5 {[%emt 0:02:05]} Qc1+ {[%emt 0:03:58]} 27. Bf1 {[%emt 0:00:30]} Bc6 {[%emt 0:01:03]} 28. Qxa5 {[%emt 0:02:50]} Qxb2 {[%emt 0:01:17]} 29. Qb6 {[%emt 0:04:36]} Qc3 {[%emt 0:01:56]} 30. Bh3 {[%emt 0:01:32]} Kg7 {[%emt 0:06:58]} 31. Qd8 {[%emt 0:03:06]} Qe1+ {[%emt 0:03:57]} 32. Bf1 {[%emt 0:02:20]} Bb5 {[%emt 0:02:42]} 33. Qf6+ {[%emt 0:00:03]} Kg8 {[%emt 0:00:08]} 34. Qd8+ {[%emt 0:00:06] Weighted Error Value: White=0.12 (very precise) /Black=0.05 (flawless)} 1/2-1/2

[Event "Fall IM-E Norm Invitational 2022"]
[Site "Charlotte"]
[Date "2022.11.18"]
[Round "2"]
[White "Sheehan, Ethan"]
[Black "Caglar, Sila"]
[Result "0-1"]
[ECO "D31"]
[WhiteElo "2157"]
[BlackElo "2268"]
[Annotator "TA"]
[PlyCount "92"]
[EventDate "2022.11.18"]
[EventType "tourn"]
[EventCountry "USA"]
[SourceTitle "playchess.com"]
[Source "ChessBase"]
[SourceQuality "1"]
[TimeControl "5400+30"]

{[%evp 12,92,15,8,63,0,0,0,8,0,8,0,2,-30,-36,-41,-8,-40,-43,-61,-43,-62,-45,-52,-31,-29,-27,-24,13,0,30,0,0,0,0,0,-4,-287,-25,-207,-202,-212,-213,-324,-310,-303,-324,-317,-314,-400,-393,-391,-207,-215,0,0,0,0,0,0,0,0,0,-22,-23,-1924,-1898,-3016,-1057,-1039,-1039,-868,-868,-577,-577,-7858,-7837,-7837,-7447,-5819,-5345,-2516,-1569]} 1. c4 {[%emt 0:00:01]} e6 {[%emt 0:05:19]} 2. Nc3 {[%emt 0:00:06]} d5 {[%emt 0:00:04]} 3. d4 {[%emt 0:00:05]} dxc4 {[%emt 0:02:42]} 4. e3 {[%emt 0:00:19]} Nf6 {[%emt 0:00:35]} 5. Bxc4 {[%emt 0:00:02]} a6 {[%emt 0:00:04]} 6. Nf3 {[%emt 0:00:28]} c5 {[%emt 0:00:37]} 7. O-O {[%emt 0:00:09]} Be7 {[%emt 0:00:12] D27: Queen's Gambit Accepted: Classical main line: 7 e4!? and 7 a4.} (7... b5 $11 8. Be2 Nbd7) 8. b3 {[%emt 0:00:10]} (8. dxc5 $14 Qxd1 9. Rxd1) 8... b5 $11 {[%emt 0:04:42]} 9. Be2 {[%emt 0:00:03]} Bb7 {[%emt 0:00:12] The position is equal.} 10. Bb2 {[%emt 0:00:14]} (10. dxc5 {simplifies} Qxd1 11. Rxd1 Bxc5 12. Bb2) 10... Nbd7 {[%emt 0:01:02][%cal Bb8d7,Bd7c5,Bc5e4,Be4d2][%mdl 32]} 11. dxc5 {[%emt 0:00:42]} Nxc5 {[%emt 0:00:20] [#]} 12. Ne5 $146 {[%emt 0:00:35]} (12. b4 {simplifies} Ncd7 13. a4 Bxb4 14. axb5 axb5 15. Rxa8 Bxa8 16. Nxb5 O-O 17. Qc2) ({Predecessor:} 12. Qxd8+ Rxd8 13. Nd4 O-O 14. Rac1 Rc8 15. Rfd1 Rfd8 16. Kf1 Kf8 17. b4 Ncd7 18. a3 {½-½ (31) Wang,Y (2726)-Lysyj,I (2691) China 2015}) 12... Qc7 {[%emt 0:02:00]} (12... Qb8 $5 {[%cal Rb8e5]} 13. f4 O-O $11) 13. f4 {[%emt 0:04:29]} b4 {[%emt 0:04:05]} (13... Rd8 $5 {[%cal Rd8d1]} 14. Qe1 O-O $15) 14. Nb1 {[%emt 0:01:55]} Nce4 {[%emt 0:04:11]} 15. Nc4 {[%emt 0:05:16]} Rd8 {[%emt 0:04:21]} 16. Qe1 {[%emt 0:00:18]} (16. Nbd2 $2 Nxd2 17. Nxd2 Bc5 $19) 16... Bd5 {[%emt 0:05:02] Black is more active.} (16... Bc5 $5 {[%cal Rf6d5]} 17. Bf3 Bd5 18. Bxf6 Nxf6 $15) 17. Nbd2 {[%emt 0:03:06]} Nxd2 {[%emt 0:04:07]} 18. Nxd2 {[%emt 0:00:06]} Bc5 {[%emt 0:00:16]} 19. Nc4 {[%emt 0:08:09]} (19. Bxa6 $2 Qb6 20. Bd3 Bxe3+ 21. Kh1 Bxg2+ $1 {[%mdl 512]} 22. Kxg2 Rxd3 $19) 19... Qa7 {[%emt 0:01:10]} (19... Bxc4 {seems wilder.} 20. Bxf6 Bxe3+ 21. Kh1 gxf6 22. Bxc4 Bd2) 20. Kh1 {[%emt 0:01:33]} h5 {[%emt 0:08:16]} 21. Qg3 {[%emt 0:00:58]} h4 {[%emt 0:05:43]} 22. Qh3 {[%emt 0:00:07]} (22. Qxg7 $2 Rg8 23. Bxf6 (23. Qxf6 Bxg2+ 24. Kg1 Bxe3+ 25. Nxe3 Qxe3+ 26. Rf2 Bh3+) 23... Rxg7 24. Bxg7 h3 $19) 22... Ne4 {[%emt 0:09:05]} 23. Bf3 {[%emt 0:03:58]} f5 {[%emt 0:02:53]} 24. g4 $2 {[%emt 0:04:29][%mdl 8192]} (24. Rad1 $11 {and White has nothing to worry.}) 24... Rh6 $2 {[%emt 0:10:46]} (24... Bxe3 $19 25. Be5 (25. Nxe3 $2 Qxe3 26. Bxg7 Rh7 $19) 25... Bd4) 25. gxf5 $2 {[%emt 0:10:21] [#]} (25. g5 $1 $11 {and White stays safe.} Rh7 26. Rac1) 25... Ng3+ $1 $19 {[%emt 0:00:26][%mdl 576]} 26. Kg2 {[%emt 0:02:51] [#]} Bxc4 $1 {[%emt 0:00:26]} (26... Nxf1 27. Kxf1 (27. Rxf1 $2 Bxc4 28. Bc6+ Kf8 $19) 27... Qb7 28. Bxd5 exd5 29. Ne5 $17) 27. hxg3 {[%emt 0:01:36]} (27. bxc4 $142 Nxf1 28. Kxf1) 27... Bxf1+ {[%emt 0:01:20]} 28. Kxf1 {[%emt 0:01:26]} Bxe3 {[%emt 0:03:19] And now ...Rd2 would win.} 29. f6 {[%emt 0:04:33]} Kf7 {[%emt 0:06:18] aiming for ...Rd2.} (29... gxf6 30. Qxe6+ Qe7 31. Qg8+ (31. Qxa6 $2 hxg3 32. Re1 Rd2 $19) 31... Qf8 32. Qc4 $11 (32. Qe6+ Qe7 $11)) 30. fxg7 {[%emt 0:00:16]} (30. Re1 $2 Rd2 31. Re2 Rd1+ 32. Re1 Rxe1+ 33. Kxe1 Bf2+ 34. Kf1 Qe3 $19) 30... Rd2 {[%emt 0:05:14] Prevents f5. Really sharp!} 31. Rd1 {[%emt 0:16:37]} Rxd1+ {[%emt 0:04:56]} (31... Rxb2 32. Qg4 Rf2+ 33. Ke1 $11) (31... Rf2+ $142 32. Ke1 Rxb2) 32. Bxd1 {[%emt 0:00:09] [#] This pair of bishops is nice.} Bd4 $2 $40 {[%emt 0:00:30][%mdl 128] Prevents g8N. Black is up to no good.} ({Better is} 32... Kg8 $1 $19 33. g4 Bxf4) 33. Qg4 $1 $11 {[%emt 0:00:56][%mdl 64]} Kg8 {[%emt 0:01:12]} 34. Qg5 {[%emt 0:01:13]} Bxg7 {[%emt 0:00:56] Hoping for ...hxg3.} 35. gxh4 {[%emt 0:01:19]} Qb7 {[%emt 0:02:46] White must now prevent ...Qh1+.} 36. Kf2 {[%emt 0:02:48]} Qb6+ {[%emt 0:00:51]} 37. Ke1 {[%emt 0:01:48][%csl Gb2][%cal Rg5g7]} e5 {[%emt 0:01:05] Threatens to win with ...Rg6.} 38. Bxe5 $2 {[%emt 0:00:24][%mdl 8192]} ({Reject} 38. fxe5 Rg6 $17) (38. Be2 $11) 38... Rg6 $19 {[%emt 0:00:08] Black is clearly winning.} 39. Bd4 {[%emt 0:04:48]} Bxd4 {[%emt 0:00:42]} ({Not} 39... Qxd4 40. Qxg6 Qxf4 41. Qg4 (41. Qxa6 $2 {loses.} Bc3+ 42. Ke2 Qd2+ 43. Kf3 Qxd1+ 44. Qe2 Qxe2+ 45. Kxe2 Kh7 $19) 41... Qxg4 42. Bxg4 $14) (39... Qe6+ $142 40. Be5 Rxg5 41. hxg5 Bxe5 42. fxe5 Qxe5+ 43. Kf2 Qb2+ 44. Kg3 Qxa2) 40. Qd5+ {[%emt 0:00:22]} Qe6+ {[%emt 0:00:04]} 41. Qxe6+ {[%emt 0:00:07]} Rxe6+ {[%emt 0:00:02]} 42. Kd2 {[%emt 0:00:08]} Be3+ {[%emt 0:00:04]} 43. Kc2 {[%emt 0:00:08]} Bxf4 {[%emt 0:00:10] ( -> ...Rd6)} 44. Bf3 {[%emt 0:00:01]} Re3 {[%emt 0:00:07]} 45. Bd5+ {[%emt 0:00:05]} Kg7 {[%emt 0:00:03]} 46. Bc4 {[%emt 0:00:07]} a5 {[%emt 0:00:03] Weighted Error Value: White=0.76/Black=0.46} 0-1

[Event "Fall IM-E Norm Invitational 2022"]
[Site "Charlotte"]
[Date "2022.11.19"]
[Round "3"]
[White "Csonka, Attila Istvan"]
[Black "Krishnakumar, Sriram"]
[Result "*"]
[ECO "B33"]
[WhiteElo "2321"]
[BlackElo "2248"]
[Annotator "TA"]
[PlyCount "37"]
[EventDate "2022.11.18"]
[EventType "tourn"]
[EventCountry "USA"]
[SourceTitle "playchess.com"]
[Source "ChessBase"]
[SourceQuality "1"]
[TimeControl "5400+30"]

{[%evp 17,18,16,22]} 1. e4 {[%emt 0:00:54]} c5 {[%emt 0:00:05]} 2. Nf3 {[%emt 0:00:14][%cal Bg1f3,Bf3d4,Bd4b5][%mdl 32]} Nc6 {[%emt 0:00:05]} 3. d4 {[%emt 0:00:05]} cxd4 {[%emt 0:00:04]} 4. Nxd4 {[%emt 0:00:04]} Nf6 {[%emt 0:00:06]} 5. Nc3 {[%emt 0:00:04]} e5 {[%emt 0:00:04]} 6. Ndb5 {[%emt 0:00:05]} d6 {[%emt 0:00:05]} 7. Nd5 {[%emt 0:00:38]} Nxd5 {[%emt 0:00:23]} 8. exd5 {[%emt 0:00:06]} Ne7 {[%emt 0:00:06]} 9. c4 {[%emt 0:00:12]} Ng6 {[%emt 0:00:44] [#]} {Predecessor:} 10. Qa4 $146 {B33: Sicilian: Pelikan and Sveshnikov Variations.} Bd7 11. Qb4 Qb8 12. h4 h5 13. Be3 a6 14. Nc3 Be7 15. g3 O-O 16. Be2 b5 17. cxb5 axb5 18. Bxh5 Bd8 19. O-O {1-0 (54) Karjakin,S (2758)-Carlsen,M (2855) Stavanger 2021} *

[Event "Fall IM-E Norm Invitational 2022"]
[Site "Charlotte"]
[Date "2022.11.19"]
[Round "3"]
[White "Beukes, Dante M"]
[Black "Rorrer, Grayson"]
[Result "0-1"]
[ECO "C55"]
[WhiteElo "2299"]
[BlackElo "2230"]
[Annotator "TA"]
[PlyCount "76"]
[EventDate "2022.11.18"]
[EventType "tourn"]
[EventCountry "USA"]
[SourceTitle "playchess.com"]
[Source "ChessBase"]
[SourceQuality "1"]
[TimeControl "5400+30"]

{[%evp 15,76,24,35,22,47,21,62,45,85,91,118,118,111,89,156,96,107,104,121,85,145,119,170,61,158,132,135,111,187,86,83,89,125,98,143,115,156,132,210,212,242,154,241,231,306,300,308,290,293,289,335,-152,109,19,28,-278,-273,-268,-264,-2588,-2252,-29989,-29990]} 1. e4 {[%emt 0:03:32]} e5 {[%emt 0:00:10]} 2. Nf3 {[%emt 0:01:11]} Nc6 {[%emt 0:00:10]} 3. Bc4 {[%emt 0:00:35]} Nf6 {[%emt 0:00:10]} 4. d3 {[%emt 0:00:06]} h6 {[%emt 0:00:09]} 5. c3 {[%emt 0:00:12]} d6 {[%emt 0:00:13]} 6. Nbd2 {[%emt 0:02:03]} g6 {[%emt 0:01:13]} 7. O-O {[%emt 0:04:08]} Bg7 {[%emt 0:00:10]} 8. Re1 {[%emt 0:02:48]} O-O 9. a4 {[%emt 0:05:04] C55: Two Knights: 4 d3, 4 d4 exd4 5 e5 and Max Lange Attack.} Kh8 {[%emt 0:10:02]} 10. b4 {[%emt 0:09:46][%cal Bb2b4,Bb4b5][%mdl 32]} Nh7 {[%emt 0:08:06]} 11. b5 {[%emt 0:10:20] [#] White is slightly better.} Ne7 $146 {[%emt 0:05:39]} ({Predecessor:} 11... Na5 12. Ba2 f5 13. h3 Qe8 14. Nf1 Be6 15. Bxe6 Qxe6 16. c4 fxe4 17. Rxe4 b6 {0-1 (67) Bilguun,S (2454)-Demchenko,A (2641) Chess.com INT 2020}) 12. d4 {[%emt 0:05:07]} c5 {[%emt 0:09:19]} 13. dxc5 {[%emt 0:01:59]} dxc5 {[%emt 0:00:14]} 14. Qb3 {[%emt 0:00:37]} f6 {[%emt 0:03:28]} (14... g5 $142) 15. Nf1 {[%emt 0:11:19]} (15. a5 $142) 15... Bg4 {[%emt 0:03:32]} 16. Nh4 {[%emt 0:00:58]} Bd7 {[%emt 0:10:30]} 17. Ne3 {[%emt 0:03:23]} f5 {[%emt 0:11:17]} ({Better is} 17... Ng5) 18. exf5 {[%emt 0:12:14]} gxf5 {[%emt 0:00:13]} 19. f4 {[%emt 0:00:05]} (19. Rd1 $18) 19... e4 {[%emt 0:06:04]} (19... Bf6 $14 20. Nf3 Ng6) 20. g3 {[%emt 0:06:26]} Bf6 {[%emt 0:01:38]} 21. Nhg2 {[%emt 0:00:59]} h5 {[%emt 0:00:30]} (21... Qc7 $16 {keeps fighting.}) 22. Nd5 {[%emt 0:03:00]} (22. Bb2 $18) 22... Nxd5 $16 {[%emt 0:04:50]} 23. Bxd5 {[%emt 0:00:06]} h4 {[%emt 0:00:09]} 24. Ra2 {[%emt 0:11:08]} (24. Bxb7 c4 25. Qxc4 Qb6+ 26. Be3 Qxb7 27. Nxh4 Rac8 $17) 24... hxg3 {[%emt 0:01:37]} 25. hxg3 {[%emt 0:00:12]} (25. Bxb7 $2 Qb6 $1 26. Ne3 (26. Qd5 $2 Be6 $19) 26... Qxb7 $19) 25... Qe7 {[%emt 0:00:07]} 26. Kf2 {[%emt 0:04:53] aiming for Ne3.} (26. Bxb7 Be6 27. Bd5 Bxd5 28. Qxd5 Rad8 $15) 26... Rad8 {[%emt 0:04:27]} (26... Qg7 $16) 27. Ne3 $18 {[%emt 0:00:25]} (27. Bxb7 $2 Be6 28. c4 Qxb7 $19) 27... Qg7 {[%emt 0:00:28]} 28. Rc2 {[%emt 0:00:20] Threatens to win with Rh1.} b6 {[%emt 0:00:36]} (28... Qh6 $16) 29. Rh1 {[%emt 0:00:37]} Qg6 {[%emt 0:00:13]} 30. Rh3 {[%emt 0:01:07]} Kg7 {[%emt 0:01:45][%cal Oh7g5] White must now prevent ...Ng5!} 31. Kf1 {[%emt 0:00:47] Strongly threatening Rch2.} Ng5 {[%emt 0:02:18]} 32. fxg5 {[%emt 0:00:14]} f4 {[%emt 0:00:01]} 33. gxf6+ $2 {[%emt 0:00:09]} (33. Rh6 $1 $18 {[%cal Rh6g6]} Qxg5 34. Rch2 $1) 33... Qxf6 {[%emt 0:00:14] [#] Dancing on a razor blade.} (33... Rxf6 $17 34. Nf5+ Rxf5) 34. Rh7+ $3 {[%emt 0:01:03]} Kxh7 $11 {[%emt 0:00:20]} 35. Bxe4+ $2 {[%emt 0:00:05][%mdl 8192] A strong pair of Bishops. Now White is beyond hope.} (35. Rf2 $1 $11 {and White stays safe.} Bh3+ 36. Ke1) 35... Kg7 $19 {[%emt 0:00:36]} 36. Rf2 {[%emt 0:01:01] Hoping for c4.} Qe5 {[%emt 0:00:39][%cal Of4e3] Prevents c4.} 37. Qd5 $2 {[%emt 0:00:06]} (37. gxf4 Qxe4 38. Rg2+ Kf6 39. Qc2 (39. Kg1 $2 Bh3 $19)) 37... Bh3+ {[%emt 0:00:04]} (37... Qxc3 $2 {gets mated.} 38. Qg5+ (38. Rxf4 $2 {perishes.} Bh3+ 39. Kf2 Rxd5 $19) 38... Kh8 39. Qh6+ Kg8 40. Qh7#) 38. Kg1 {[%emt 0:00:53]} Rxd5 {[%emt 0:00:06] Weighted Error Value: White=0.84/Black=0.46} 0-1